Cogmind - Beta 16 --- EXPLORER MODE // 2026.01.09 @ 10:56:30 Player: K.K.Y. Result: Destroyed by II-O6T(R) with Subdweller Machine Gun Performance ------------- Evolutions (0) 0 Regions Visited (3) 600 Robots Destroyed (38) 190 Value Destroyed (1217) 1217 Prototype IDs (1) 20 Alien Tech Used (0) 0 Bonus (0) 0 TOTAL SCORE: 2027 Bonus ------- None Cogmind --------- Core Integrity 0/250 Matter 300/300 Energy 12/100 System Corruption 0% Temperature Cool (0) Movement Treading (160) Location -10/Subcaves Parts ------- > --- POWER (1) -------- (None) > --- PROPULSION (2) --- Light Treads > --- UTILITY (3) ------ Structural Scanner > --- WEAPON (2) ------- Subdweller Beam Cannon > --- INVENTORY (5) ---- Improved Heat Sink Huge Storage Unit Machine Analyzer Peak State ------------ > --- POWER ------------ Light Nuclear Core > --- PROPULSION ------- Light Treads Light Treads > --- UTILITY ---------- Structural Scanner Experimental Sensor Array Seismic Detector > --- WEAPON ----------- Beam Cannon Beam Cannon > --- INVENTORY -------- Improved Heat Sink Huge Storage Unit Machine Analyzer Improved Terrain Scanner Mining Laser [Rating: 19] Favorites ----------- Power Light Nuclear Core Engine Subdweller Power Source Power Core Light Nuclear Core Propulsion Light Treads Treads Light Treads Utility Structural Scanner Device Structural Scanner Storage Medium Storage Unit Weapon Beam Cannon Energy Gun Medium Laser Energy Cannon Beam Cannon Ballistic Gun Barrage Gun Ballistic Cannon Slug Cannon Special Weapon Mining Laser Build | -11 -10 -10 -10 ------- Run | Yrd Mat Min Sub Slots Evolved 1 | . 1 . . Power . | . . . . Propulsion . | . . . . Utility 1 | . 1 . . Weapon . | . . . . Parts Attached 27 | 7 10 2 8 Power 4 | 1 2 . 1 Engine 3 | 1 1 . 1 Core 1 | . 1 . . Reactor . | . . . . Propulsion 5 | 2 . 1 2 Treads 5 | 2 . 1 2 Leg . | . . . . Wheel . | . . . . Hover . | . . . . Flight . | . . . . Utility 7 | 2 3 1 1 Device 6 | 1 3 1 1 Storage 1 | 1 . . . Processor . | . . . . Hackware . | . . . . Protection . | . . . . Artifact . | . . . . Weapon 11 | 2 5 . 4 Energy Gun 5 | 2 2 . 1 Energy Cannon 3 | . 2 . 1 Ballistic Gun 1 | . . . 1 Ballistic Cannon 1 | . . . 1 Launcher . | . . . . Special Weapon 1 | . 1 . . Impact Weapon . | . . . . Slashing Weapon . | . . . . Piercing Weapon . | . . . . Special Melee Weapon . | . . . . Unidentified Prototypes 1 | . . 1 . Parts Lost 14 | . 1 . 13 Power 3 | . 1 . 2 Propulsion 3 | . . . 3 Utility 3 | . . . 3 Weapon 5 | . . . 5 Highest Loss Streak 3 | . 1 . 3 To Critical Strikes . | . . . . Average Backups 4 | 1 4 5 4 Power . | . . . . Propulsion . | . . . . Utility 3 | 1 3 4 3 Weapon . | . . 1 1 Tool/Special . | . . . . Unused Backups 6 | . 2 . 4 Power . | . . . . Propulsion . | . . . . Utility 5 | . 2 . 3 Weapon 1 | . . . 1 Tool/Special . | . . . . Average Slot Usage (%) 91 | . 97 100 78 Engine 4 | . 6 . 6 Core 5 | . 3 12 2 Treads 21 | . 25 25 14 Device 33 | . 35 37 29 Energy Gun 5 | . 15 . . Energy Cannon 14 | . 5 25 13 Special Weapon 2 | . 3 . 4 Peak Build Rating 19 | 7 12 19 19 Average Rating 11 | 5 9 12 12 On Entrance 9 | . 7 11 19 Avg Prop Armor Cover (%) . | . . . . Naked Turns . | . . . . Heaviest Build 19 | 18 19 14 18 Greatest Support 40 | 40 40 40 40 Greatest Overweight (x) 3 | . . . 3 Average Overweight (x) . | . . . . Largest Inventory Capacity 10 | 10 10 5 5 Average Capacity 5 | 9 5 5 5 Most Carried 5 | 5 5 5 5 Average Carried 4 | 1 4 5 4 Final Capacity 10 | 10 5 5 5 Final Carried 5 | 3 5 5 3 Class Distribution -------------------- 100% | Hacker-Mutant Dominant Class ---------------- Hacker-Mutant | -10/Materials Hacker-Mutant | -10/Mines Hacker-Mutant | -10/Subcaves Resources | -11 -10 -10 -10 ----------- Run | Yrd Mat Min Sub Matter Collected 774 | 270 105 30 369 Remotely . | . . . . Salvage Created 1342 | 93 590 151 508 Parts 60 | 5 29 2 24 Haulers Intercepted 2 | . 2 . . Recyclers Shooed . | . . . . Parts Field Recycled . | . . . . Retrieved Matter . | . . . . Parts Self-Destructed . | . . . . Prevented . | . . . . Parts Restored . | . . . . Kills | -11 -10 -10 -10 ------- Run | Yrd Mat Min Sub Combat Hostiles Destroyed 31 | . 9 5 17 Guns 15 | . 9 . 6 Cannons 15 | . . 4 11 Classes Destroyed 12 | 2 4 1 5 Tunneler 1 | 1 . . . Hauler 2 | . 2 . . Recycler 1 | 1 . . . Mechanic 1 | . 1 . . Turret 2 | . . . 2 Watcher 3 | . 3 . . Swarmer 3 | . . . 3 Grunt 14 | . 9 2 3 Sentry 1 | . . . 1 Artisan 2 | . . . 2 Subdweller 10 | . . . 10 Assembled 3 | . . 3 . Best Kill Streak 4 | 2 2 3 4 Combat Bots Only 4 | . 2 3 4 Max Kills in Single Turn 1 | 1 1 1 1 Gunslinging . | . . . . Exploded . | . . . . Melee . | . . . . Uniques/NPCs Destroyed . | . . . . Combat | -11 -10 -10 -10 -------- Run | Yrd Mat Min Sub Hostile Shots Fired 218 | . 41 13 164 Missed 66 | . 16 7 43 Hits 152 | . 25 6 121 Projectile 152 | . 25 6 121 AOE 2 | . . . 2 Critical Strikes 5 | . 2 . 3 Damage Taken 1648 | . 252 96 1300 Core 252 | . 31 9 212 Absorbed by Shields . | . . . . Ignored by Resistances 949 | . 155 60 734 Core Remaining (%) 100 | 100 . . . Volleys Fired 138 | 5 43 9 81 Largest 2 | 2 2 2 2 Hottest 160 | 90 150 120 160 Shots Fired 264 | 10 83 18 153 Gun 127 | 10 80 . 37 Cannon 124 | . 2 18 104 Launcher . | . . . . Special 13 | . 1 . 12 Kinetic 63 | . . . 63 Thermal 190 | 5 82 18 85 Explosive . | . . . . Electromagnetic 11 | 5 1 . 5 Robot Hit Streak 41 | 10 33 36 41 Robot Miss Streak 2 | . 2 . 2 Penetration Max . | . . . . Secondary Targets 1 | . 1 . . Max Gunslinging Chain 1 | . 1 . . Shots Hit Robots 208 | 10 66 15 117 Core Hits 73 | 3 28 8 34 Critical Kills 2 | . . 1 1 Critical Parts Destroyed 2 | . . . 2 Critical Strikes 13 | 1 7 1 4 Burn 8 | 1 7 . . Meltdown 1 | . . 1 . Destroy 4 | . . . 4 Melee Attacks . | . . . . Impact . | . . . . Slashing . | . . . . Piercing . | . . . . Sneak Attacks . | . . . . Combat Hostiles . | . . . . Follow-up Attacks . | . . . . Damage Inflicted 3617 | 126 924 260 2307 Guns 1575 | 126 907 . 542 Cannons 1898 | . 17 260 1621 Explosions . | . . . . Melee . | . . . . Ramming . | . . . . Kinetic 1130 | . . . 1130 Thermal 2327 | 63 924 260 1080 Explosive . | . . . . Electromagnetic 160 | 63 . . 97 Impact . | . . . . Slashing . | . . . . Piercing . | . . . . Highest Corruption . | . . . . Average Corruption . | . . . . Corruption Purged . | . . . . Corruption Blocked . | . . . . Overload Shots . | . . . . Overflow Damage 10 | . 5 . 5 Projectiles 10 | . 5 . 5 Explosions . | . . . . Melee . | . . . . Knockbacks 5 | . . . 5 Impact . | . . . . Kinetic 5 | . . . 5 Secondary . | . . . . Self-Inflicted Damage 44 | . . 44 . Shots 2 | . . 2 . Rammed . | . . . . Targets Rammed . | . . . . Kicked . | . . . . Crushed . | . . . . Highest Temperature 509 | 120 509 262 156 Average Temperature 113 | 58 131 122 46 Received Heat Transfer 705 | . 228 27 450 Effects 3 | . 3 . . Shutdowns 1 | . 1 . . Energy Bleed 1 | . 1 . . Damage (minor) 1 | . 1 . . Siege Activations . | . . . . Martial Activations . | . . . . Shielding Activations . | . . . . Robots Disrupted . | . . . . Combat Hostiles . | . . . . Robots Corrupted . | . . . . Combat Hostiles . | . . . . Parts Fried 2 | 1 . . 1 Impact Corruptions . | . . . . Robots Melted 1 | . . 1 . Combat Hostiles 1 | . . 1 . Parts Melted 7 | 1 4 . 2 Heat Transferred 6072 | 259 2997 555 2261 Parts Sabotaged . | . . . . Parts Stolen . | . . . . Parts Stripped . | . . . . Power Chain Reactions . | . . . . Alert | -11 -10 -10 -10 ------- Run | Yrd Mat Min Sub Maximum Alert Level . | . . . . Low Security (%) 100 | 100 100 100 . Level 1 . | . . . . Level 2 . | . . . . Level 3 . | . . . . Level 4 . | . . . . Level 5 . | . . . . High Security . | . . . . Max Security . | . . . . Peak Influence 61 | 5 55 61 . Initial . | . . . . Average 2 | . 3 2 . Influence Increases 602 | 10 296 76 220 Destroy 0b10 Robot/C 400 | . 180 40 180 Destroy 0b10 Robot/NC 40 | 10 30 . . Destroy Leader 70 | . 50 10 10 Successful Hack 16 | . 16 . . Disable Machine 20 | . 4 16 . Destroy Structure 11 | . 1 10 . Lose Combat Pursuer 45 | . 15 . 30 Influence Decreases 602 | 10 296 76 220 Time Decay 545 | 10 289 76 170 Lost Part 57 | . 7 . 50 Squads Dispatched . | . . . . Investigation . | . . . . Extermination . | . . . . Reinforcement . | . . . . Assault . | . . . . Garrison . | . . . . Intercept . | . . . . Searches Triggered . | . . . . Construction Impeded . | . . . . Haulers Reinforced . | . . . . Active Scanning Responses . | . . . . Cargo Convoy Interrupts . | . . . . Stealth | -11 -10 -10 -10 --------- Run | Yrd Mat Min Sub Distress Signals 4 | . 4 . . Communications Jammed . | . . . . Distress Signals . | . . . . Times Spotted 49 | . 20 6 23 Peak Tracking Total 5 | . 5 2 4 Tactical Retreats 2 | . 1 . 1 Traps | -11 -10 -10 -10 ------- Run | Yrd Mat Min Sub Traps Triggered 4 | . 2 . 2 Indirectly . | . . . . Trap Hack Attempts . | . . . . Triggered . | . . . . Disarmed . | . . . . Reprogrammed . | . . . . Reused . | . . . . Traps Extracted . | . . . . Installed . | . . . . Triggered . | . . . . Machines | -11 -10 -10 -10 ---------- Run | Yrd Mat Min Sub Machines Disabled 6 | . 1 4 1 Max in Single Turn 4 | . 1 4 1 Machines Repaired . | . . . . Machines Dismantled . | . . . . Machines Sabotaged . | . . . . Overloaded Fab Kills . | . . . . Hacking | -11 -10 -10 -10 --------- Run | Yrd Mat Min Sub Machines Accessed 9 | . 8 1 . Terminals 8 | . 8 . . Fabricators . | . . . . Repair Stations . | . . . . Recycling Units . | . . . . Scanalyzers . | . . . . Garrison Access . | . . . . Total Hacks 14 | . 13 1 . Successful 12 | . 11 1 . Failed 2 | . 2 . . Catastrophic . | . . . . Database Lockouts . | . . . . Manual 11 | . 11 . . Terminals 13 | . 13 . . Fabricators . | . . . . Repair Stations . | . . . . Recycling Units . | . . . . Scanalyzers . | . . . . Garrison Access . | . . . . Terminal Hacks 3 | . 2 1 . Robot Analysis 2 | . 2 . . Open Door 1 | . . 1 . Fabricator Hacks . | . . . . Repair Station Hacks . | . . . . Recycling Unit Hacks . | . . . . Scanalyzer . | . . . . Garrison Access Hacks . | . . . . Unauthorized Hacks 8 | . 8 . . Terminals 8 | . 8 . . Botnet 8 | . 8 . . Fabricators . | . . . . Repair Stations . | . . . . Recycling Units . | . . . . Scanalyzers . | . . . . Garrison Access . | . . . . Data Cores Recovered . | . . . . Used . | . . . . Hacking Detections 2 | . 2 . . Full Trace Events . | . . . . Feedback Events . | . . . . Feedback Blocked . | . . . . Robot Schematics Acquired . | . . . . Robots Built . | . . . . Authchips . | . . . . Time . | . . . . Total Robot Build Rating . | . . . . Part Schematics Acquired . | . . . . Parts Built . | . . . . Authchips . | . . . . Time . | . . . . Total Part Build Rating . | . . . . Part Studies Acquired . | . . . . Parts Repaired . | . . . . Time . | . . . . Parts Recycled . | . . . . Recycled Matter . | . . . . Retrieved Matter . | . . . . Retrieved Components . | . . . . Parts Scanalyzed . | . . . . Part Schematics Acquired . | . . . . Parts Damaged . | . . . . Bothacking | -11 -10 -10 -10 ------------ Run | Yrd Mat Min Sub Used RIF Installer . | . . . . Robots Hacked . | . . . . Non-combat . | . . . . Combat . | . . . . Robot Hacks Applied . | . . . . Relay Couplers Released . | . . . . Fabnet Peak Effective % . | . . . . Robots Rewired . | . . . . Allies Hacked . | . . . . Hacks Repelled . | . . . . Allies | -11 -10 -10 -10 -------- Run | Yrd Mat Min Sub Total Allies . | . . . . Largest Group . | . . . . Highest-Rated Group . | . . . . Highest-Rated Ally . | . . . . Total Orders . | . . . . Ally Attacks . | . . . . Total Damage . | . . . . Kills . | . . . . Allies Corrupted . | . . . . Allies Melted . | . . . . Intel | -11 -10 -10 -10 ------- Run | Yrd Mat Min Sub Active Infowar (turns) 5332 | 77 1796 1495 1964 Sensors 3726 | . 1685 1494 547 Terrain 581 | . . . 581 Structural 5177 | . 1718 1495 1964 Seismic 4974 | 77 1796 1495 1606 Robot Analysis Total 2 | . 2 . . Derelict Logs Recovered . | . . . . Drone Launches . | . . . . Drone Recoveries . | . . . . Exploration | -11 -10 -10 -10 ------------- Run | Yrd Mat Min Sub Turns Passed 5349 | 94 1796 1495 1964 Spaces Moved 2634 | 49 815 805 965 Core 94 | 13 . . 81 Treads 2540 | 36 815 805 884 Legs . | . . . . Wheels . | . . . . Hover . | . . . . Flight . | . . . . Fastest Speed 50 | 50 160 160 50 Average Speed 159 | 130 160 160 161 Slowest Speed 200 | 160 160 160 200 Overloaded Moves . | . . . . Propulsion Burnouts . | . . . . Robots Hopped . | . . . . Potential Cave-ins . | . . . . Cave-ins Triggered . | . . . . Exploration Rate (%) 65 | 5 97 98 63 Regions Visited 3 Branch Regions 2 Pre-discovered Areas 1 | . . . 1 Known Exits Taken 3 | 1 1 1 . Unknown Exits Taken . | . . . . Scrap Searched 7 | . . . 7 Spaces Dug . | . . . . Terrain Destroyed 16 | . . 12 4 Melee . | . . . . Projectile 4 | . . . 4 AOE 12 | . . 12 . Terrain Rammed . | . . . . Walls Destroyed . | . . . . Machines Disabled . | . . . . Actions | -11 -10 -10 -10 --------- Run | Yrd Mat Min Sub Total 3479 | 69 1222 995 1193 Wait 643 | . 339 176 128 Move 2631 | 48 814 804 965 Hop . | . . . . Pick Up 23 | 9 7 . 7 Fast Attach 8 | 1 3 2 2 Attach 13 | 6 1 . 6 Detach . | . . . . Swap 9 | . 7 1 1 Drop 14 | . 8 3 3 Fire 138 | 5 43 9 81 Melee . | . . . . Ram . | . . . . Kick . | . . . . Crush . | . . . . Escape Stasis . | . . . . Rewire . | . . . . Trap . | . . . . Miscellaneous . | . . . . Route ------- -11/Scrapyard -10/Materials (discovered 5 exits: *Mat x3 / *Min x2) -10/Mines (discovered 4 exits: *Mat x2 / Exi / *Sub) -10/Subcaves (discovered 3 exits: *Mat / *Rec / [*Scr]) History --------- Turn | Location | Event 7 | -11/Scrapyard | Identified exit to Materials 7 | -11/Scrapyard | Discovered exit to Materials (range 15) 95 | -11/Scrapyard | Entered Materials 95 | -10/Materials | Evolved 1 slot: Utility x1 184 | -10/Materials | Identified exit to Mines 184 | -10/Materials | Discovered exit to Mines (range 10) 288 | -10/Materials | Identified exit to Materials 288 | -10/Materials | Discovered exit to Materials (range 6) 304 | -10/Materials | Build established: Hacker-Mutant 328 | -10/Materials | Discovered exit to Mines (range 16) 969 | -10/Materials | Discovered exit to Materials (range 3) 1540 | -10/Materials | Discovered exit to Materials (range 16) 1891 | -10/Materials | Entered Mines 1971 | -10/Mines | Discovered exit to Materials (range 4) 2020 | -10/Mines | Discovered exit to Materials (range 6) 2184 | -10/Mines | Assembled infested the area 2750 | -10/Mines | Identified exit to Subcaves 2750 | -10/Mines | Discovered exit to Subcaves (range 6) 2783 | -10/Mines | Found the Drone Emporium 2916 | -10/Mines | Deemed a non-threat by the Exiles lab entrance 2916 | -10/Mines | Identified exit to Exiles 2916 | -10/Mines | Discovered exit to Exiles (range 6) 3065 | -10/Mines | Found a damaged Exp. Sensor Array with a note attached 3069 | -10/Mines | Found Prototype Device 3069 | -10/Mines | Identified Exp. Sensor Array 3386 | -10/Mines | Entered Subcaves 3387 | -10/Subcaves | Approached by a straggling Scientist 3539 | -10/Subcaves | Shifting Twisted Machinery released Sub. Monowheel 3559 | -10/Subcaves | Shifting Twisted Machinery released Mak. Thermal Plating 3941 | -10/Subcaves | Identified exit to Recycling 3941 | -10/Subcaves | Discovered exit to Recycling (range 15) 4009 | -10/Subcaves | Learned location of Zion (-7) 4009 | -10/Subcaves | Met a Zionite searching for "candidates" 4025 | -10/Subcaves | Ambushed by angry Subdweller bent on revenge 4148 | -10/Subcaves | Disturbed a concealed Subdweller 4208 | -10/Subcaves | Core integrity fell below 50% 4362 | -10/Subcaves | Shifting Twisted Machinery released Sub. Machine Gun 4365 | -10/Subcaves | Shifting Twisted Machinery released Spk. Treads 4859 | -10/Subcaves | Disturbed a concealed Subdweller 4933 | -10/Subcaves | Ambushed by Subdwellers from Twisted Machinery 5004 | -10/Subcaves | Core integrity fell below 20% 5256 | -10/Subcaves | Lost 3 parts (1n2w) 5282 | -10/Subcaves | Identified exit to Materials 5282 | -10/Subcaves | Discovered exit to Materials (range 6) 5350 | -10/Subcaves | Destroyed by II-O6T(R) with Subdweller Machine Gun Last Messages --------------- 05213_ Spk. Treads destroyed. 05216_ Slug penetrates G-34 Mercenary. 05216_ G-34 Mercenary destroyed. 05222_ Slug Cannon destroyed. 05225_ Barrage Gun destroyed. 05226_ Acquired 66 matter. 05228_ Y-45 Defender destroyed. 05231_ Acquired 21 matter. 05232_ Acquired 10 matter. 05233_ Acquired 36 matter. 05234_ Acquired 4 matter. 05237_ Acquired 12 matter. 05247_ Acquired Lgt. Treads. 05282_ EXIT=FOUND: MATERIALS 05334_ Q5-PA5(R) misfires. 05337_ Sub. Monowheel fried. 05337_ Q5-PA5(R) destroyed. 05342_ Riot Gun destroyed. 05343_ Acquired 36 matter. 05346_ Acquired 10 matter. Map ----- +----------------------------------------------------+ | ???#### ##### ####?## ###???????????????? | | ????############ ####### ##???????????????? | | ?????#####??############ ###??????????????? | | ??????????????#### ## " "## ##????????????? | | ???????????????## " " ##????????????? | | ???????????????### "" " """"" ##????????????? | | ???????????????### " """" ##????????????? | | ???????????????### """"" ##????????????? | | ???????????????## " """""" ##????????????? | | ???????????????## " ###### "" ###????????????? | | ???????????????### #######?""###????????????? | | ???????????????#### ###?????? ##?????????????? | | ????????????????### ##??????????????????????? | | ?????????????????## ##??????"##?????????????? | | ?????????????????## ###??????"##?????????????? | | ??????????######### ###???""""##?????????????? | | ?????????########## #####""" ##?????????????? | | ?????????### ####" ###????????????? | | ????????### ### ###????????????? | | ???????#### ##????????????? | | ???????### ####????????????? | | ???????## ## ###??????????????? | | ???????#### #######??????????????? | | ???????##### #######?????????????? | | ?????????### ## ###?????????????? | | ??????????## ## ###@ ##?????????????? | | ??????????## ### ###R! ##?????????????? | | ??????????### #### ##?????????????? | | ??????????#### #### ##?????????????? | | ???????????#######" = ##?????????????? | | ????????????####### = #### ###?????????????? | | ????????????????### [###### ###?????????????? | | ?????????????????##" ##### ###????????????? | | ?????????????????## ##### ###????????????? | | ?????????????????### ## ##????????????? | | ?????????????????#### ###????????????? | | ??????????????????### # ###????????????? | | ??????????????????### # ##?????????????? | | ??????????????????## ####?????????????? | | ??????????????????### ####?????????????? | | ??????????????????### #####???????????????? | | ??????????????????### ######???????????????? | | ??????????????????## ###??????????????????? | | ??????????????????### #####???????????????????? | | ????????????????##### ####???????????????????? | | ???????????????###### ###?????????????????????? | | ??????????????#### ###?????????????????????? | | ??????????????### ####????????????????????? | | ??????????????## #######???????????????????? | | ??????????????## #### ####??????????????????? | +----------------------------------------------------+ Best States ------------- Heat Dissipation 25 Energy Generation 15 Energy Capacity 200 Matter Stores 300 Matter Capacity 300 Sight Range 16 Robot Scan Range 20 Terrain Scan Range 16 Terrain Scan Density 10 Resistance: KI 35 Resistance: TH 35 Resistance: EX 35 Resistance: EM 35 Resistance: I 35 Resistance: S 35 Resistance: P 35 Evasion (%) 50 Recoil Reduction 2 Offensive Hacking 20 Item Schematics ----------------- None Robot Schematics ------------------ None Fabricated ------------ Nothing Repaired ---------- Nothing Studied --------- None Alien Tech Used ----------------- None Achievements -------------- None Challenges ------------ None Game ------ Seed ControlCryofiberRecalibrator Manual? 0 Play Time 00:24:57 Cumulative 268.6 hours Start 2026.01.09 @ 10:34:35 End 2026.01.09 @ 10:56:30 Sessions 1 Manual Loads 0 Difficulty Explorer Special Mode None Game No. 419 Rogue 0 Adventurer 0 Explorer 419 Win Type - Total 0 Types 0/0/0/0/0/0/0/0/0/0 Lore% 72 Gallery% 69 Achievement% 54 Wizard Run 0 Options --------- Layout 1 ASCII 0 Keyboard 0 Movement Mouse Keybinds 1 Fullscreen 1 Font 24/Smallcaps Map View 50x35 Zoom Use 0% Tactical HUD 1 Map Filters NONE Filters NONE Steam 1 RUN: 4289ec38-9b7c-4271-b72b-229f5740d3ba